bitfinex/quotes_ETHUSD_20260313
["timestamp","ask_amount","ask_price","bid_price","bid_amount"]
[1773391698989,1.9490425,2099.4,2098.5,1.9587901]
[1773391700009,1.9490425,2099.4,2098.6,1.566]
[1773391700214,0.01029656,2099.3,2098.7,2.01737287]
[1773391700391,1.1907597,2099.5,2098.7,2.78486988]
[1773391700702,0.01029656,2099.4,2098.7,2.78486988]
[1773391701090,0.001,2099.2,2098.8,1.19115685]
[1773391701292,0.001,2099.2,2098.7,3.20854419]
[1773391701501,0.01029656,2099.1,2098.7,2.01737287]
[1773391701717,0.01029656,2099.1,2098.8,1.566]
[1773391702018,0.001,2099.2,2098.9,1.566]
[1773391702019,0.01029656,2099.0,2098.9,1.566]
[1773391702226,0.001,2099.2,2098.9,1.566]
[1773391702227,0.01129656,2099.2,2098.9,1.566]
[1773391703336,0.01129656,2099.2,2098.9,2.7570937]
[1773391703533,0.01129656,2099.2,2098.9,1.566]
[1773391704514,0.01129656,2099.2,2098.9,2.75707017]
[1773391704716,0.01129656,2099.2,2099.0,0.04764173]
[1773391705046,0.001,2099.2,2099.0,0.04764173]
[1773391705208,0.31681636,2099.8,2099.2,1.19092987]
[1773391705414,1.50740722,2099.8,2099.1,3.93756221]
[1773391705831,0.31681636,2099.8,2099.1,1.92018934]
[1773391706151,1.50741337,2099.8,2099.1,1.92018934]
[1773391706712,0.31681636,2099.8,2099.1,1.92018934]
[1773391707123,1.50741269,2099.8,2099.1,1.92018934]
[1773391707409,2.25810999,2099.8,2099.1,0.72924607]
[1773391707614,1.06751366,2099.8,2099.2,1.61363719]
[1773391707840,0.31681636,2099.8,2099.2,2.29524607]
[1773391709521,0.31681636,2099.8,2099.2,3.48614199]
[1773391710118,3.15107391,2099.8,2099.2,3.48614199]
[1773391710520,0.31681636,2099.8,2099.2,3.48614199]
[1773391710747,0.31681636,2099.8,2099.2,2.29524607]
[1773391711043,0.7506973,2099.7,2098.9,0.72924607]
[1773391711248,3.58983718,2099.6,2099.0,1.567]
[1773391711543,1.94140588,2099.6,2099.1,1.567]
[1773391711722,0.7506973,2099.6,2099.2,1.567]
[1773391711922,2.84315981,2099.7,2099.3,2.74661894]
[1773391712117,1.94100487,2100.3,2099.6,2.01737287]
[1773391712314,2.84255076,2100.2,2099.6,2.01737287]
[1773391712538,0.7506973,2100.3,2099.6,2.01737287]
[1773391712823,0.7506973,2100.1,2099.7,1.567]
[1773391713854,0.7506973,2100.0,2099.8,1.567]
[1773391715327,0.7506973,2100.0,2099.3,2.01737287]
[1773391715532,0.001,2099.8,2099.4,1.568]
[1773391716763,0.001,2099.8,2099.5,1.568]
[1773391716944,0.001,2099.8,2099.3,2.01737287]
[1773391717265,0.001,2099.8,2099.4,1.568]
[1773391717852,0.001,2099.8,2099.5,0.04763038]
[1773391718958,0.001,2099.8,2099.4,3.48806063]
[1773391719749,0.05905904,2100.4,2099.5,0.72924607]
[1773391719953,0.002,2100.7,2100.3,2.01737287]
[1773391720252,0.002,2100.7,2100.0,4.76399181]
[1773391720253,0.002,2100.7,2100.4,1.568]
[1773391721663,1.2490165,2101.0,2100.4,3.58125193]
[1773391721857,1.18995746,2101.0,2100.4,4.7714673]
[1773391722268,1.18995746,2101.0,2100.4,3.58125193]
[1773391723672,1.18995746,2101.0,2100.4,1.568]
[1773391723874,1.94065476,2101.0,2100.4,1.568]
[1773391724077,0.7506973,2100.8,2099.4,0.72924607]
[1773391724279,0.7506973,2100.6,2099.5,2.01325193]
[1773391724481,0.7506973,2100.4,2099.5,2.01325193]
[1773391724980,0.7506973,2100.4,2099.6,0.0107679]
[1773391725198,0.79767813,2100.7,2099.8,2.8112879]
[1773391725400,0.05905904,2100.6,2099.8,2.8112879]
[1773391726070,1.24923764,2100.6,2099.9,1.19053288]
[1773391729173,1.24923764,2100.6,2099.5,2.36403597]
[1773391729391,0.79767813,2100.5,2099.6,1.569]
[1773391729590,0.85673717,2100.4,2100.0,0.001]
[1773391729800,0.85873717,2100.4,2100.0,0.001]
[1773391730384,1.19030614,2100.3,2100.0,0.001]
[1773391731027,0.002,2100.4,2100.1,0.76585576]
[1773391731310,0.002,2100.6,2100.2,1.569]
[1773391731687,0.002,2100.9,2100.3,2.01325193]
[1773391732419,0.002,2100.9,2100.4,1.19024947]
[1773391732709,0.79600854,2101.3,2100.6,2.01325193]
[1773391732710,1.18976456,2101.3,2100.6,2.01325193]
[1773391732877,1.56678127,2101.4,2100.6,2.01325193]
[1773391733270,1.24878691,2101.4,2100.6,2.01325193]
[1773391733688,1.18969153,2101.4,2100.7,0.76585576]
[1773391733892,1.18969153,2101.4,2100.8,1.569]
[1773391734176,2.04463743,2101.6,2100.8,2.33485576]
[1773391734595,2.04463743,2101.6,2100.9,1.1899662]
[1773391734882,7.25994921,2101.9,2101.0,0.76585576]
[1773391734883,1.18940006,2101.9,2101.0,0.76585576]
[1773391735112,2.83536351,2101.8,2101.0,0.76585576]
[1773391735311,0.85506758,2101.7,2101.1,1.569]
[1773391736390,0.85506758,2101.7,2100.4,3.52610265]
[1773391736620,1.98557839,2101.6,2100.6,1.95599191]
[1773391736821,0.05905904,2101.5,2100.7,0.76585576]
[1773391737339,0.85506758,2101.5,2100.6,1.19013615]
[1773391737703,0.85506758,2101.5,2100.7,1.569]
[1773391738104,0.85506758,2101.5,2100.5,3.20343986]
[1773391738316,0.85506758,2101.5,2100.8,1.569]
[1773391738803,1.9856916,2101.4,2100.8,1.569]
[1773391739015,0.05905904,2101.3,2100.8,1.569]
[1773391740310,0.79600854,2101.2,2100.9,1.569]
[1773391740513,0.05905904,2101.1,2101.0,1.569]
[1773391740835,1.18954582,2101.7,2101.0,1.569]
[1773391741010,0.05905904,2101.6,2101.0,2.75890691]
[1773391741215,2.89330247,2101.6,2101.0,1.569]
[1773391741625,2.89330247,2101.6,2101.1,1.569]
[1773391741804,0.79600854,2101.5,2100.7,1.19004601]
[1773391742006,0.05905904,2101.4,2100.7,1.95590177]
[1773391742313,0.05905904,2101.6,2100.8,0.76585576]
[1773391742812,1.18962645,2101.5,2100.9,1.1899662]
[1773391743005,1.18962645,2101.5,2101.0,1.569]
[1773391744856,0.05905904,2101.4,2101.1,1.57]
[1773391745820,0.002,2101.2,2101.1,1.57]
[1773391746743,1.98586147,2101.1,2100.2,1.95618204]
[1773391747340,0.79600854,2101.0,2100.1,0.001]
[1773391748131,1.18985293,2101.1,2100.3,0.76585576]
[1773391748932,4.76141173,2101.2,2100.5,0.76585576]
[1773391750236,5.55742027,2101.2,2100.6,1.57]
[1773391750561,5.55742027,2101.2,2100.3,1.19026208]
[1773391750746,5.55742027,2101.2,2100.4,1.57]
[1773391751461,5.55742027,2101.2,2100.4,2.76019431]
[1773391751647,0.002,2101.2,2100.7,0.76585576]
[1773391752251,0.05905904,2101.5,2100.7,0.76585576]
[1773391752565,2.89827628,2101.7,2100.7,0.76585576]
[1773391753069,2.89827628,2101.7,2100.6,2.01325193]
[1773391753070,2.83921724,2101.7,2101.0,0.76585576]
[1773391753467,2.83921724,2101.7,2101.1,1.57]
[1773391753629,2.83921724,2101.7,2100.7,0.76585576]
[1773391753630,0.79600854,2101.5,2100.7,0.76585576]
[1773391753825,0.85506758,2101.4,2100.8,1.57]
[1773391754331,0.05905904,2101.4,2100.8,1.57]
[1773391754673,3.69471675,2101.5,2100.8,1.57]
[1773391755555,3.69471675,2101.5,2100.9,1.569]
[1773391755934,0.79600854,2101.3,2101.0,1.569]
[1773391756167,1.18968306,2101.4,2100.5,0.76585576]
[1773391756364,1.2487421,2101.4,2100.5,0.76585576]
[1773391757345,1.2487421,2101.4,2100.6,1.569]
[1773391757943,1.2487421,2101.4,2100.7,1.19007949]
[1773391758344,2.84303642,2101.3,2100.7,1.19007949]
[1773391758770,2.84303642,2101.3,2100.8,1.569]
[1773391759566,3.63904496,2101.3,2100.9,1.569]
[1773391759757,0.05905904,2101.2,2100.9,1.569]
[1773391759956,1.18985293,2101.1,2100.9,1.569]
[1773391760341,1.18985293,2101.1,2100.5,0.76585576]
[1773391760546,1.18985293,2101.1,2101.0,0.001]
[1773391760754,1.24890158,2101.2,2100.6,2.2617731]
[1773391760958,1.18984254,2101.2,2100.7,0.6927731]
[1773391761263,1.18984254,2101.2,2100.8,0.001]
[1773391761438,1.1917826,2101.3,2100.8,0.6937731]
[1773391761845,0.002,2101.3,2101.0,1.88268266]
[1773391762076,2.84683963,2101.4,2101.1,0.6927731]
[1773391762274,0.002,2101.5,2101.2,1.569]
[1773391762636,2.84909715,2101.5,2101.2,1.569]
[1773391762832,0.002,2101.5,2101.2,1.569]
[1773391763070,0.002,2101.5,2100.8,0.6937731]
[1773391763253,0.06105904,2101.5,2100.9,2.7589662]
[1773391763432,0.002,2101.5,2100.9,2.7589662]
[1773391763637,0.002,2101.5,2100.9,3.4517393]
[1773391764852,1.19162645,2101.5,2100.9,0.6927731]
[1773391765057,1.25068549,2101.5,2101.0,1.569]
[1773391765353,1.19162645,2101.5,2101.0,1.569]
[1773391765562,1.25068549,2101.5,2101.0,1.569]
[1773391766072,1.19162645,2101.5,2101.0,1.569]
[1773391766370,1.25068549,2101.5,2101.0,1.569]
[1773391766872,0.002,2101.5,2101.0,2.75889588]
[1773391767038,0.002,2101.5,2101.1,0.6927731]
[1773391767233,1.19162757,2101.5,2101.1,0.6927731]
[1773391767851,0.002,2101.5,2101.1,0.6927731]
[1773391768746,0.002,2101.5,2101.1,1.88262416]
[1773391770946,1.19162645,2101.5,2101.2,1.57]
[1773391771874,1.19162645,2101.5,2100.8,1.88375463]
[1773391772047,1.89741155,2101.5,2100.9,1.57]
[1773391774874,1.89741155,2101.5,2100.9,2.75994115]
[1773391775199,1.89741155,2101.5,2101.0,0.001]
[1773391775378,0.002,2101.3,2101.0,0.001]
[1773391775575,0.002,2101.3,2101.0,0.6937731]
[1773391775777,0.002,2101.5,2101.2,0.6927731]
[1773391776710,1.1916287,2101.5,2101.0,0.6937731]
[1773391776908,0.002,2101.5,2101.3,1.572]
[1773391777700,0.002,2101.8,2101.4,0.6927731]
[1773391779114,0.002,2101.8,2101.4,1.88240426]
[1773391779474,0.002,2101.8,2101.5,1.573]
[1773391779974,0.002,2101.8,2101.6,1.573]
[1773391782279,0.002,2101.8,2101.1,2.2617731]
[1773391782484,0.002,2101.8,2101.1,3.45159989]
[1773391782673,0.002,2101.8,2101.2,0.6927731]
[1773391783717,0.002,2101.8,2101.3,2.2667731]
[1773391783891,0.002,2101.8,2101.4,0.6927731]
[1773391784891,0.002,2101.8,2101.4,0.70731004]
[1773391785687,0.002,2101.8,2101.5,1.18962645]
[1773391786013,1.89692259,2102.4,2101.6,0.70731004]
[1773391786214,1.19112119,2102.4,2101.6,0.70731004]
[1773391786415,0.002,2102.4,2101.6,0.70731004]
[1773391786788,0.002,2102.4,2101.7,1.575]
[1773391786789,1.25021091,2102.4,2101.7,1.575]
[1773391786989,1.25021091,2102.4,2101.7,2.28231004]
[1773391787300,0.002,2102.4,2101.8,0.70731004]
[1773391787515,1.19111987,2102.4,2101.8,0.70731004]
[1773391787712,0.002,2102.4,2101.9,1.8967101]
[1773391788076,0.002,2102.4,2102.0,0.70731004]
[1773391789694,0.002,2102.4,2102.1,1.1892869]
[1773391789894,0.002,2102.4,2102.2,1.577]
[1773391791108,0.002,2102.6,2102.2,1.577]
[1773391791309,0.002,2102.6,2102.3,0.6587331]
[1773391791508,0.002,2102.6,2102.4,1.578]
[1773391791806,0.002,2102.6,2102.4,2.76706071]
[1773391792007,0.002,2102.6,2102.4,3.42579381]
[1773391793109,0.002,2102.6,2102.4,2.76706071]
[1773391793293,0.002,2102.9,2102.5,0.6587331]
[1773391794109,0.002,2102.9,2102.6,1.18900409]
[1773391794518,0.002,2102.9,2102.6,1.84773719]
[1773391794683,4.4745566,2103.5,2102.8,0.6587331]
[1773391795012,0.68328722,2103.5,2102.9,2.2387331]
[1773391795381,1.87178856,2103.5,2102.9,2.2387331]
[1773391795587,1.24753565,2103.6,2103.0,0.6587331]
[1773391796210,0.05905904,2103.6,2103.1,1.18872141]
[1773391796390,1.24749134,2103.7,2103.1,1.18872141]
[1773391796818,1.1884323,2103.7,2103.1,1.18872141]
[1773391797706,0.74234626,2103.6,2102.9,2.76879925]
[1773391797914,0.74234626,2103.6,2102.9,2.76880759]
[1773391798213,1.18849536,2103.5,2102.9,2.76880759]
[1773391799917,1.18849536,2103.5,2103.0,1.583]
[1773391799918,0.68328722,2103.4,2103.0,1.583]
[1773391800516,1.18860837,2103.3,2103.0,1.583]
[1773391800711,1.87188201,2103.4,2103.0,1.583]
[1773391801725,1.18859479,2103.4,2103.0,1.583]
[1773391802022,1.93082989,2103.6,2103.0,2.2417331]
[1773391802236,1.93082989,2103.6,2103.1,1.584]
[1773391803222,1.24754267,2103.6,2103.1,3.43143656]
[1773391803422,0.68328722,2103.3,2103.2,1.585]
[1773391803624,0.05905904,2103.3,2102.7,0.6587331]
[1773391803815,1.18848363,2103.6,2102.7,0.6587331]
[1773391803816,0.05905904,2103.5,2102.7,0.6587331]
[1773391804120,0.002,2103.1,2102.7,0.6587331]
[1773391804718,0.002,2103.1,2102.8,2.2437331]
[1773391804910,0.002,2103.1,2102.9,0.6587331]
[1773391805107,0.002,2103.1,2103.0,1.84751103]
[1773391806399,0.002,2103.1,2103.0,1.586]
[1773391807028,0.002,2103.1,2103.0,2.2447331]
[1773391807195,0.002,2103.1,2103.0,3.43351103]
[1773391807859,0.68328722,2104.2,2103.4,0.6587331]
[1773391808143,1.87140495,2104.2,2103.4,0.6587331]
[1773391808440,1.93046399,2104.2,2103.5,2.2447331]
[1773391808999,1.18806496,2104.3,2103.6,0.6587331]
[1773391809200,1.1880104,2104.4,2103.8,0.6587331]
[1773391809524,1.24706944,2104.4,2103.8,0.6587331]
[1773391810700,0.05905904,2104.4,2103.8,0.6587331]
[1773391810901,4.75153722,2104.6,2103.8,0.6587331]
[1773391810902,0.05905904,2104.6,2103.8,0.6587331]
[1773391811206,0.68328722,2104.5,2103.9,1.1882694]
[1773391811412,0.74234626,2104.4,2104.0,1.587]
[1773391811744,0.74234626,2104.4,2103.6,1.84714282]
[1773391812027,0.74234626,2104.4,2102.9,0.6587331]
[1773391812028,0.68328722,2104.0,2102.9,0.6587331]
[1773391812330,0.05905904,2103.9,2103.0,0.6587331]
[1773391812514,0.74234626,2103.9,2103.0,0.6587331]
[1773391813098,1.18832588,2103.8,2103.1,1.587]
[1773391813298,0.05905904,2103.7,2103.1,1.587]
[1773391814527,0.05905904,2103.7,2103.2,0.6587331]
[1773391814730,1.24738492,2103.8,2103.2,0.6587331]
[1773391814912,1.18832588,2103.8,2103.2,0.6587331]
[1773391815113,1.24738492,2103.8,2103.2,0.6587331]
[1773391815632,1.24738492,2103.8,2103.2,1.84735433]
[1773391816427,1.2473688,2103.9,2103.3,0.6587331]
[1773391816628,1.2473688,2103.9,2103.4,1.588]
[1773391816837,1.91931751,2103.9,2103.4,1.588]
[1773391818114,1.91931751,2103.9,2103.5,1.588]
[1773391818630,1.2473688,2103.9,2103.5,1.588]
[1773391818838,1.18830976,2103.9,2103.5,1.588]
[1773391819009,0.002,2103.6,2103.5,1.588]
[1773391819203,0.002,2103.6,2103.3,1.8473316]
[1773391819429,0.002,2103.6,2103.4,1.588]
[1773391820117,0.002,2103.8,2103.4,3.43527899]
[1773391820429,0.002,2103.8,2103.4,2.2467331]
[1773391820730,0.002,2103.8,2103.5,1.588]
[1773391821608,0.002,2103.8,2103.6,0.67017253]
[1773391822111,0.002,2103.8,2103.2,0.67017253]
[1773391822317,0.63620094,2103.8,2103.2,0.67017253]
[1773391822731,0.63620094,2103.8,2103.0,1.85893978]
[1773391823118,0.63620094,2103.8,2103.0,1.85893013]
[1773391823315,0.63620094,2103.8,2103.1,1.589]
[1773391823527,0.002,2103.8,2103.2,0.67017253]
[1773391824139,1.19032588,2103.8,2103.3,1.8587809]
[1773391825734,0.63420094,2103.7,2103.1,1.85885358]
[1773391825940,0.63420094,2103.7,2103.4,1.589]
[1773391826844,1.18843886,2103.6,2102.9,1.86000103]
[1773391827039,1.18843886,2103.6,2102.9,0.67117253]
[1773391827339,1.8226398,2103.6,2102.9,0.67117253]
[1773391827538,1.8226398,2103.6,2102.9,1.86000072]
[1773391827836,0.63420094,2103.4,2102.9,0.001]
[1773391828036,0.63420094,2103.4,2103.0,1.589]
[1773391828225,0.63420094,2103.4,2102.9,0.001]
[1773391828839,1.18860837,2103.3,2102.9,0.001]
[1773391829548,0.63420094,2103.2,2102.9,0.001]
[1773391830057,0.63420094,2103.2,2102.6,0.001]
[1773391830834,0.63420094,2103.0,2102.6,0.001]
[1773391831353,0.63420094,2102.8,2102.0,0.67117253]
[1773391831745,0.63420094,2102.8,2102.0,0.001]
[1773391832327,0.63420094,2102.8,2102.0,0.67117253]
[1773391832848,0.63420094,2102.6,2102.0,0.001]
[1773391833158,0.63420094,2102.6,2102.1,1.589]
[1773391834523,0.63420094,2102.6,2102.5,0.001]
[1773391835041,1.18906064,2102.5,2102.3,0.001]
[1773391835241,1.82326158,2102.5,2102.0,0.001]
[1773391837043,1.82326158,2102.5,2102.1,1.589]
[1773391838150,1.82326158,2102.5,2102.0,0.001]
[1773391840226,1.18906064,2102.5,2102.1,1.588]
[1773391840740,2.01191632,2103.0,2102.1,1.588]
[1773391840741,1.18883446,2102.9,2102.1,1.588]
[1773391840942,0.69325998,2102.8,2102.1,2.25817253]
[1773391841749,0.63420094,2102.6,2102.1,1.588]
[1773391841952,0.05905904,2102.5,2102.1,1.588]
[1773391842730,1.18894754,2102.7,2102.2,0.04756921]
[1773391842958,0.05905904,2102.6,2102.2,0.04756921]
[1773391843450,0.05905904,2102.6,2102.1,2.25817253]
[1773391843751,1.18906064,2102.5,2102.1,2.25817253]
[1773391844952,0.05905904,2102.4,2102.1,1.588]
[1773391845160,0.68050318,2102.3,2102.0,0.001]
[1773391845474,0.68050318,2102.3,2101.8,0.57518804]
[1773391845836,1.18923033,2102.2,2101.8,0.57518804]
[1773391846238,1.86973351,2102.2,2101.8,0.57518804]
[1773391846636,1.86973351,2102.2,2101.9,1.586]
[1773391847132,1.86973351,2102.2,2101.8,0.57518804]
[1773391847530,0.68050318,2102.1,2101.5,1.19061681]
[1773391847741,0.68050318,2102.1,2101.5,1.8175486]
[1773391847956,1.86979008,2102.1,2102.0,0.001]
[1773391848860,1.86979008,2102.1,2102.0,1.587]
[1773391849359,1.86979008,2102.1,2102.0,1.586]
[1773391849561,0.68050318,2102.0,2101.8,0.001]
[1773391850561,1.18940006,2101.9,2101.8,0.001]
[1773391850861,1.82901502,2101.9,2101.5,0.001]
[1773391851564,0.63961496,2101.8,2101.6,1.585]
[1773391851730,1.82900234,2102.0,2101.6,1.585]
[1773391852064,1.18938738,2102.0,2101.6,1.585]
[1773391852647,1.18933193,2102.1,2101.6,2.24547922]
[1773391854863,1.24839097,2102.1,2101.6,3.43503736]
[1773391856163,0.002,2102.4,2101.7,0.70805975]
[1773391856368,1.19115456,2102.4,2101.7,0.66047922]
[1773391856549,0.698674,2102.3,2101.8,1.583]
[1773391856746,0.63961496,2102.1,2101.8,1.583]
[1773391856944,0.698674,2102.1,2101.8,1.583]
[1773391857343,0.05905904,2102.1,2101.8,1.583]
[1773391857947,1.18923033,2102.2,2101.8,1.583]
[1773391858154,0.05905904,2102.1,2101.8,1.583]
[1773391859669,1.24835019,2102.1,2101.8,1.583]
[1773391860572,1.18922338,2102.3,2101.8,3.48049317]
[1773391861646,1.19115529,2102.4,2102.0,0.001]
[1773391862057,0.002,2102.1,2102.0,0.001]
[1773391862252,1.19115529,2102.4,2102.0,0.001]
[1773391862572,0.002,2102.3,2102.0,0.001]
[1773391862738,1.83064652,2102.6,2102.0,0.001]
[1773391862939,1.83064652,2102.6,2102.0,0.66147922]
[1773391863540,1.19103156,2102.6,2102.0,0.66147922]
[1773391863745,0.002,2102.6,2102.1,1.84976612]
[1773391864468,0.002,2102.6,2102.2,0.66047922]
[1773391866057,0.002,2102.6,2102.3,2.77117376]
[1773391866363,0.002,2102.6,2102.3,3.43165298]
[1773391866567,0.002,2102.6,2102.4,0.66047922]
[1773391868052,0.002,2102.6,2102.3,2.77117376]
[1773391868258,0.002,2102.6,2102.3,1.582]
[1773391868668,0.002,2102.6,2102.3,2.24247922]
[1773391869054,0.002,2102.9,2102.4,0.66047922]
[1773391871257,0.64161496,2102.9,2102.4,0.66047922]
[1773391871469,0.64161496,2102.9,2102.3,2.77112685]
[1773391871777,0.64161496,2102.9,2102.3,1.582]
[1773391871982,0.64161496,2102.9,2102.3,2.77117033]
[1773391872152,0.64161496,2102.9,2102.3,1.582]
[1773391872578,0.63961496,2102.8,2102.3,1.582]
[1773391872766,0.63961496,2102.8,2102.3,0.04756695]
[1773391872973,0.63961496,2102.8,2102.4,1.582]
[1773391874677,1.18894754,2102.7,2102.4,1.583]
[1773391874879,1.19094754,2102.7,2102.4,1.583]
[1773391875662,1.8305625,2102.7,2102.4,1.583]
[1773391876057,1.8305625,2102.7,2102.5,1.582]
[1773391876253,0.63961496,2102.6,2102.1,0.001]
[1773391877066,1.8286756,2102.5,2102.1,0.001]
[1773391877454,1.8286756,2102.5,2102.2,1.582]
[1773391877654,1.11707064,2102.5,2102.2,2.24247922]
[1773391877886,0.002,2102.7,2102.3,0.70804617]
[1773391879673,0.002,2102.7,2102.3,0.66047922]
[1773391880385,0.002,2102.7,2102.2,2.77118621]
[1773391881187,0.61003658,2102.7,2102.3,1.582]
[1773391881387,1.18906064,2102.5,2102.3,1.582]
[1773391882291,1.18906064,2102.5,2102.1,0.70947618]
[1773391882795,0.002,2102.7,2102.3,0.66090471]
[1773391883028,1.19095859,2102.7,2102.1,1.85114948]
[1773391883194,1.19095859,2102.7,2102.1,0.66190471]
[1773391883490,0.60803658,2102.4,2102.1,0.001]
[1773391883858,6.76722893,2102.6,2102.1,1.85118333]
[1773391883859,1.18903728,2102.6,2102.1,1.85118333]
[1773391884075,1.79707386,2102.6,2102.1,0.001]
[1773391884471,1.1909511,2102.7,2102.2,1.85013504]
[1773391884683,1.1909511,2102.7,2102.2,1.89770425]
[1773391884890,1.1909511,2102.7,2102.3,1.582]
[1773391885865,0.002,2102.7,2102.4,0.04756468]
[1773391888014,0.002,2102.7,2102.4,0.70846939]
[1773391888210,0.002,2102.7,2102.4,1.89754113]
[1773391888802,0.002,2102.7,2102.5,0.001]
[1773391890009,0.61003658,2102.7,2102.3,2.81973708]
[1773391890304,0.002,2102.7,2102.4,0.66090471]
[1773391891014,0.002,2102.7,2102.3,2.77217013]
[1773391891319,1.19096439,2102.7,2102.3,1.583]
[1773391891814,1.79900097,2102.7,2102.3,1.583]
[1773391892195,1.19096439,2102.7,2102.3,2.24390471]
[1773391893025,0.60803658,2102.6,2102.3,1.583]
[1773391893211,0.60803658,2102.6,2102.1,0.001]
[1773391894317,0.60803658,2102.4,2102.2,1.582]
[1773391895113,0.60803658,2102.4,2102.0,0.001]
[1773391896601,1.18917376,2102.3,2102.1,1.581]
[1773391897001,1.79721034,2102.3,2102.1,1.581]
[1773391897214,1.79721034,2102.3,2101.9,0.001]
[1773391898415,0.60803658,2102.2,2101.9,0.001]
[1773391898723,1.1892869,2102.1,2102.0,1.581]
[1773391899121,1.1892869,2102.1,2101.8,0.001]
[1773391899923,1.79732348,2102.1,2101.8,0.001]
[1773391901000,1.79732348,2102.1,2101.9,1.581]
[1773391901217,1.79732348,2102.1,2101.8,0.001]
[1773391902916,1.79732348,2102.1,2102.0,0.001]
[1773391903095,1.79732348,2102.1,2101.8,0.001]
[1773391903816,0.60803658,2102.0,2101.8,0.001]
[1773391904914,1.82678552,2102.1,2101.8,0.001]
[1773391905119,1.82678552,2102.1,2101.5,0.001]
[1773391905120,0.63749862,2101.9,2101.5,0.001]
[1773391905903,0.63749862,2101.8,2101.5,0.001]
[1773391906894,1.18951325,2101.7,2101.5,0.001]
[1773391907399,1.18951325,2101.7,2101.6,1.58]
[1773391908093,1.18951325,2101.7,2101.5,0.001]
[1773391910420,1.18951325,2101.7,2101.5,0.61987567]
[1773391910625,1.1894377,2101.9,2101.6,2.19787567]
[1773391910826,1.82680704,2102.1,2101.6,1.579]
[1773391910997,1.19127677,2102.2,2101.7,0.64832961]
[1773391911196,1.19127677,2102.2,2101.7,1.8378198]
[1773391911411,1.19127677,2102.2,2101.8,0.60074908]
[1773391911925,1.80861311,2102.2,2101.8,0.60074908]
[1773391912096,1.19127677,2102.2,2101.8,0.60074908]
[1773391915191,1.80861311,2102.2,2101.8,0.60074908]
[1773391915396,0.61733634,2102.1,2101.6,1.579]
[1773391915724,0.61733634,2102.1,2101.7,0.001]
[1773391915925,0.002,2102.0,2101.7,0.001]
[1773391916294,1.19134348,2102.0,2101.7,0.001]
[1773391916501,0.002,2102.0,2101.7,0.60174908]
[1773391918812,0.002,2102.0,2101.8,0.60074908]
[1773391920423,0.002,2102.0,2101.9,0.60074908]
[1773391920606,0.002,2102.2,2101.9,0.60074908]
[1773391921617,0.61933634,2102.2,2101.8,0.60074908]
[1773391922839,1.1892869,2102.1,2101.8,0.60074908]
[1773391923206,1.80662324,2102.1,2101.7,0.001]
[1773391924016,0.61733634,2102.0,2101.7,0.001]
[1773391924940,1.8067364,2101.9,2101.7,0.001]
[1773391925134,1.8067364,2101.9,2101.5,0.001]
[1773391925717,1.18939058,2102.0,2101.6,0.60074908]
[1773391926238,1.80672692,2102.0,2101.6,0.60074908]
[1773391926439,1.80672692,2102.0,2101.7,1.576]
[1773391926642,0.61733634,2101.9,2101.7,1.576]
[1773391927322,1.18945665,2101.8,2101.7,1.576]
[1773391927524,1.80679299,2101.8,2101.7,1.576]
[1773391928224,1.80679299,2101.8,2101.5,0.001]
[1773391928839,1.80879299,2101.8,2101.5,0.001]
[1773391929147,0.002,2101.8,2101.6,0.60174908]
[1773391929312,0.002,2101.8,2101.7,1.576]
[1773391929512,0.002,2101.8,2101.7,2.17674908]
[1773391933736,0.002,2101.8,2101.7,3.36626233]
[1773391935255,0.002,2101.8,2101.7,1.576]
[1773391935617,0.61933634,2101.8,2101.7,1.576]
[1773391936134,1.80881848,2101.8,2101.6,0.001]
[1773391936617,1.19148214,2101.8,2101.6,0.001]
[1773391937022,0.002,2101.8,2101.6,0.60174908]
[1773391937548,0.002,2101.8,2101.7,1.576]
[1773391938750,0.002,2101.8,2101.7,2.17674908]
[1773391939629,0.002,2101.8,2101.7,1.576]
[1773391940933,0.61709257,2101.8,2101.7,1.576]
[1773391941140,0.61709257,2101.8,2101.6,0.001]
[1773391942358,0.61709257,2101.8,2101.7,1.576]
[1773391943161,1.80657789,2101.8,2101.6,0.001]
[1773391944533,1.80657789,2101.8,2101.7,1.576]
[1773391945160,1.80657789,2101.8,2101.6,0.001]
[1773391945859,1.19148532,2101.8,2101.6,0.001]
[1773391946462,0.002,2101.8,2101.6,0.001]
[1773391946665,0.002,2101.8,2101.7,1.576]
[1773391947043,1.19145665,2101.8,2101.5,0.64966886]
[1773391947249,1.80654922,2101.8,2101.5,0.60208381]
[1773391947558,0.61509257,2101.7,2101.5,0.001]
[1773391948862,0.61509257,2101.7,2101.6,1.576]
[1773391950356,0.61509257,2101.6,2101.4,0.001]
[1773391951263,1.18951325,2101.7,2101.4,0.001]
[1773391951458,1.80460582,2101.7,2101.4,0.001]
[1773391951661,1.18951325,2101.7,2101.4,0.001]
[1773391951963,1.80460582,2101.7,2101.4,0.001]
[1773391952166,1.80460582,2101.7,2101.5,1.575]
[1773391955769,0.61509257,2101.7,2101.5,1.575]
[1773391956276,0.61709257,2101.6,2101.1,0.001]
[1773391957272,0.61509257,2101.4,2101.1,0.001]
[1773391957452,0.61509257,2101.4,2101.1,0.60208381]
[1773391957651,0.61509257,2101.4,2101.2,1.574]
[1773391958100,0.61509257,2101.4,2101.1,0.001]
[1773391959048,1.18962645,2101.5,2101.1,0.60208381]
[1773391959253,1.80482339,2101.4,2101.1,0.60208381]
[1773391959877,0.61509257,2101.3,2101.2,1.574]
[1773391960046,0.61509257,2101.3,2100.9,0.001]
[1773391960670,0.61509257,2101.3,2101.0,0.60108381]
[1773391961371,0.002,2101.6,2101.0,0.60108381]
[1773391961372,1.80669021,2101.6,2101.2,0.60108381]
[1773391962150,0.61709257,2101.6,2101.3,1.574]
[1773391962356,0.61709257,2101.6,2101.4,0.60108381]
[1773391962357,0.002,2101.6,2101.4,0.60108381]
[1773391962581,0.002,2101.6,2101.3,1.574]